Workbook

Sheet String Waves
Z1: 0 | AA1: 1 | AB1: -0.7 | AC1: 0.4 | AD1: -0.15 | AE1: -1 | AF1: 0.5 | AG1: -0.25 | AH1: -0.8 | AI1: 0.9 | AJ1: -0.9 | AK1: 0.33 | AL1: -0.6
B2: Simulation of Standing Waves on a String | Z2: Base | AA2: Forwards | AB2: Forwards | AC2: Forwards | AD2: Forwards | AE2: Backwards | AF2: Backwards | AG2: Backwards | AH2: Backwards | AI2: Forwards | AJ2: Forwards | AK2: Backwards | AL2: Backwards
I3: Please keep the Zoom level at exactly 100%. | X3: i | Y3: x (%) | Z3: Plot 0 | AA3: Plot 1 | AB3: Plot 2 | AC3: Plot 3 | AD3: Plot 4 | AE3: Plot 5 | AF3: Plot 6 | AG3: Plot 7 | AH3: Plot 8 | AI3: Plot 9 | AJ3: Plot 10 | AK3: Plot 11 | AL3: Plot 12
B4: Hanging Mass m (g) | C4: =U5*5 -> 100 | X4: 0 | Y4: =X4/100 -> 0 | Z4: 0 | AA4: =V$21*SIN(2*PI()*Y4*V$12/V$17) -> 0 | AB4: =$AA4*AB$1 -> 0 | AC4: 0 | AD4: 0 | AE4: =V$21*AE$1*SIN(2*PI()*(1-Y4)*V$12/V$17) -> -0.00263037714 | AF4: =$AE4*AF$1 -> -0.00131518857 | AG4: 0.0006575942849 | AH4: 0.002104301712 | AI4: =$AA4*AI$1 -> 0 | AJ4: =$AA4*AJ$1 -> 0 | AK4: =$AE4*AK$1 -> -0.0008680244561 | AL4: =$AE4*AL$1 -> 0.001578226284
B5: String Length L (cm) | C5: ?? | I5: Total string mass (g): | L5: =U7*V11/100 -> 2.92877443 | U5: 20 | X5: 1 | Y5: =X5/100 -> 0.01 | Z5: 0 | AA5: 0.0002055143105 | AB5: -0.0001438600173 | AC5: 8.22057242e-05 | AD5: -3.082714657e-05 | AE5: -0.002578371207 | AF5: -0.001289185604 | AG5: 0.0006445928018 | AH5: 0.002062696966 | AI5: =$AA5*AI$1 -> 0.0001849628794 | AJ5: -0.0001849628794 | AK5: =$AE5*AK$1 -> -0.0008508624984 | AL5: 0.001547022724
B6: String Density m (g/m) | C6: (thin) | F6: (thick) | U6: 5 | X6: 2 | Y6: 0.02 | Z6: 0 | AA6: 0.0004098307169 | AB6: -0.0002868815018 | AC6: 0.0001639322867 | AD6: -6.147460753e-05 | AE6: -0.002511336436 | AF6: -0.001255668218 | AG6: 0.000627834109 | AH6: 0.002009069149 | AI6: 0.0003688476452 | AJ6: -0.0003688476452 | AK6: -0.0008287410239 | AL6: 0.001506801862
B7: Frequency f (Hz) | C7: =U8/5 -> 18.4 | U7: =V7/500 -> 2 | V7: 1000 | X7: 3 | Y7: 0.03 | Z7: 0 | AA7: 0.0006117582973 | AB7: -0.0004282308081 | AC7: 0.0002447033189 | AD7: -9.17637446e-05 | AE7: -0.002429663558 | AF7: -0.001214831779 | AG7: 0.0006074158896 | AH7: 0.001943730847 | AI7: 0.0005505824676 | AJ7: -0.0005505824676 | AK7: -0.0008017889743 | AL7: 0.001457798135
B8: Amplitude h (cm) | C8: =U9/250 -> 4 | I8: The ruler is 50 cm long. You may drag it around to determine L… | U8: 92 | X8: 4 | Y8: 0.04 | Z8: 0 | AA8: 0.0008101200542 | AB8: -0.0005670840379 | AC8: 0.0003240480217 | AD8: -0.0001215180081 | AE8: -0.002333828631 | AF8: -0.001166914315 | AG8: 0.0005834571577 | AH8: 0.001867062905 | AI8: 0.0007291080488 | AJ8: -0.0007291080488 | AK8: -0.0007701634481 | AL8: 0.001400297178
U9: 1000 | X9: 5 | Y9: 0.05 | Z9: 0 | AA9: 0.001003759774 | AB9: -0.0007026318419 | AC9: 0.0004015039096 | AD9: -0.0001505639661 | AE9: -0.002224390256 | AF9: -0.001112195128 | AG9: 0.0005560975641 | AH9: 0.001779512205 | AI9: 0.0009033837967 | AJ9: -0.0009033837967 | AK9: -0.0007340487846 | AL9: 0.001334634154
X10: 6 | Y10: 0.06 | Z10: 0 | AA10: 0.001191548768 | AB10: -0.0008340841374 | AC10: 0.0004766195071 | AD10: -0.0001787323152 | AE10: -0.002101986331 | AF10: -0.001050993166 | AG10: 0.0005254965828 | AH10: 0.001681589065 | AI10: 0.001072393891 | AJ10: -0.001072393891 | AK10: -0.0006936554893 | AL10: 0.001261191799
V11: 146.4387215 | X11: 7 | Y11: 0.07 | Z11: 0 | AA11: 0.001372392449 | AB11: -0.000960674714 | AC11: 0.0005489569794 | AD11: -0.0002058588673 | AE11: -0.001967330324 | AF11: -0.0009836651621 | AG11: 0.0004918325811 | AH11: 0.001573864259 | AI11: 0.001235153204 | AJ11: -0.001235153204 | AK11: -0.000649219007 | AL11: 0.001180398195
V12: =V11/100 -> 1.464387215 | X12: 8 | Y12: 0.08 | Z12: 0 | AA12: 0.001545236713 | AB12: -0.001081665699 | AC12: 0.0006180946851 | AD12: -0.0002317855069 | AE12: -0.00182120712 | AF12: -0.0009106035601 | AG12: 0.0004553017801 | AH12: 0.001456965696 | AI12: 0.001390713042 | AJ12: -0.001390713042 | AK12: -0.0006009983497 | AL12: 0.001092724272
V13: =C4/1000 -> 0.1 | X13: 9 | Y13: 0.09 | Z13: 0 | AA13: 0.001709074084 | AB13: -0.001196351859 | AC13: 0.0006836296336 | AD13: -0.0002563611126 | AE13: -0.001664468444 | AF13: -0.0008322342218 | AG13: 0.0004161171109 | AH13: 0.001331574755 | AI13: 0.001538166676 | AJ13: -0.001538166676 | AK13: -0.0005492745864 | AL13: 0.0009986810662
V14: =V13*9.8 -> 0.98 | X14: 10 | Y14: 0.1 | Z14: 0 | AA14: 0.001862949585 | AB14: -0.001304064709 | AC14: 0.0007451798339 | AD14: -0.0002794424377 | AE14: -0.001498027895 | AF14: -0.0007490139473 | AG14: 0.0003745069737 | AH14: 0.001198422316 | AI14: 0.001676654626 | AJ14: -0.001676654626 | AK14: -0.0004943492052 | AL14: 0.0008988167368
V15: =U7/1000 -> 0.002 | X15: 11 | Y15: 0.11 | Z15: 0 | AA15: 0.002005966304 | AB15: -0.001404176413 | AC15: 0.0008023865217 | AD15: -0.0003008949456 | AE15: -0.001322855624 | AF15: -0.0006614278119 | AG15: 0.000330713906 | AH15: 0.001058284499 | AI15: 0.001805369674 | AJ15: -0.001805369674 | AK15: -0.0004365423559 | AL15: 0.0007937133743
V16: =SQRT(V14/V15) -> 22.13594362 | X16: 12 | Y16: 0.12 | Z16: 0 | AA16: 0.002137290625 | AB16: -0.001496103437 | AC16: 0.0008549162498 | AD16: -0.0003205935937 | AE16: -0.001139972677 | AF16: -0.0005699863387 | AG16: 0.0002849931693 | AH16: 0.0009119781419 | AI16: 0.001923561562 | AJ16: -0.001923561562 | AK16: -0.0003761909835 | AL16: 0.0006839836064
V17: =V16/V27 -> 1.204870215 | X17: 13 | Y17: 0.13 | Z17: 0 | AA17: 0.002256157081 | AB17: -0.001579309957 | AC17: 0.0009024628325 | AD17: -0.0003384235622 | AE17: -0.0009504450452 | AF17: -0.0004752225226 | AG17: 0.0002376112613 | AH17: 0.0007603560361 | AI17: 0.002030541373 | AJ17: -0.002030541373 | AK17: -0.0003136468649 | AL17: 0.0005702670271
V18: =2*V12/V17 -> 2.430780008 | X18: 14 | Y18: 0.14 | Z18: 0 | AA18: 0.002361872824 | AB18: -0.001653310977 | AC18: 0.0009447491297 | AD18: -0.0003542809236 | AE18: -0.0007553774483 | AF18: -0.0003776887241 | AG18: 0.0001888443621 | AH18: 0.0006043019586 | AI18: 0.002125685542 | AJ18: -0.002125685542 | AK18: -0.0002492745579 | AL18: 0.000453226469
V19: =C8/100 -> 0.04 | X19: 15 | Y19: 0.15 | Z19: 0 | AA19: 0.002453821656 | AB19: -0.001717675159 | AC19: 0.0009815286625 | AD19: -0.0003680732484 | AE19: -0.0005559068988 | AF19: -0.0002779534494 | AG19: 0.0001389767247 | AH19: 0.000444725519 | AI19: 0.002208439491 | AJ19: -0.002208439491 | AK19: -0.0001834492766 | AL19: 0.0003335441393
V20: =2*PI()*V27 -> 115.4350353 | X20: 16 | Y20: 0.16 | Z20: 0 | AA20: 0.002531467625 | AB20: -0.001772027338 | AC20: 0.00101258705 | AD20: -0.0003797201438 | AE20: -0.0003531960729 | AF20: -0.0001765980365 | AG20: 8.829901823e-05 | AH20: 0.0002825568583 | AI20: 0.002278320863 | AJ20: -0.002278320863 | AK20: -0.0001165547041 | AL20: 0.0002119176438
V21: =V19*(V25)^(12)/(0.3*V18+0.7) -> 0.002693820977 | X21: 17 | Y21: 0.17 | Z21: 0 | AA21: 0.002594358147 | AB21: -0.001816050703 | AC21: 0.001037743259 | AD21: -0.000389153722 | AE21: -0.0001484265338 | AF21: -7.421326691e-05 | AG21: 3.710663346e-05 | AH21: 0.0001187412271 | AI21: 0.002334922332 | AJ21: -0.002334922332 | AK21: -4.898075616e-05 | AL21: 8.90559203e-05
V22: =INT(V18+0.5) -> 2 | X22: 18 | Y22: 0.18 | Z22: 0 | AA22: 0.002642126645 | AB22: -0.001849488651 | AC22: 0.001056850658 | AD22: -0.0003963189967 | AE22: 5.720815553e-05 | AF22: 2.860407777e-05 | AG22: -1.430203888e-05 | AH22: -4.576652443e-05 | AI22: 0.00237791398 | AJ22: -0.00237791398 | AK22: 1.887869133e-05 | AL22: -3.432489332e-05
V23: =V22/V18 -> 0.8227811623 | X23: 19 | Y23: 0.19 | Z23: 0 | AA23: 0.002674494685 | AB23: -0.00187214628 | AC23: 0.001069797874 | AD23: -0.0004011742028 | AE23: 0.0002625093894 | AF23: 0.0001312546947 | AG23: -6.562734734e-05 | AH23: -0.0002100075115 | AI23: 0.002407045217 | AJ23: -0.002407045217 | AK23: 8.662809849e-05 | AL23: -0.0001575056336
V24: =1/V23 -> 1.215390004 | X24: 20 | Y24: 0.2 | Z24: 0 | AA24: 0.002691273601 | AB24: =$AA24*AB$1 -> -0.00188389152 | AC24: 0.00107650944 | AD24: -0.0004036910401 | AE24: 0.0004662805055 | AF24: =$AE24*AF$1 -> 0.0002331402527 | AG24: -0.0001165701264 | AH24: -0.0003730244044 | AI24: 0.002422146241 | AJ24: -0.002422146241 | AK24: 0.0001538725668 | AL24: -0.0002797683033
V25: =MIN(V23:V24) -> 0.8227811623 | X25: 21 | Y25: 0.21 | Z25: 0 | AA25: 0.00269236559 | AB25: -0.001884655913 | AC25: 0.001076946236 | AD25: -0.0004038548386 | AE25: 0.0006673337606 | AF25: 0.0003336668803 | AG25: -0.0001668334401 | AH25: -0.0005338670085 | AI25: 0.002423129031 | AJ25: -0.002423129031 | AK25: 0.000220220141 | AL25: -0.0004004002563
V26: =(RAND()*V28/100+1-(V28/200) + RAND()*V28/100+1-(V28/200))/2 -> 0.9984813298 | X26: 22 | Y26: 0.22 | Z26: 0 | AA26: 0.002677764289 | AB26: -0.001874435002 | AC26: 0.001071105716 | AD26: -0.0004016646434 | AE26: 0.0008644972531 | AF26: 0.0004322486266 | AG26: -0.0002161243133 | AH26: -0.0006915978025 | AI26: 0.00240998786 | AJ26: -0.00240998786 | AK26: 0.0002852840935 | AL26: -0.0005186983519
V27: =C7*V26 -> 18.37205647 | X27: 23 | Y27: 0.23 | Z27: 0 | AA27: 0.002647554806 | AB27: -0.001853288364 | AC27: 0.001059021922 | AD27: -0.0003971332208 | AE27: 0.001056621754 | AF27: 0.0005283108772 | AG27: -0.0002641554386 | AH27: -0.0008452974035 | AI27: 0.002382799325 | AJ27: -0.002382799325 | AK27: 0.0003486851789 | AL27: -0.0006339730526
V28: 1 | X28: 24 | Y28: 0.24 | Z28: 0 | AA28: 0.002601913225 | AB28: -0.001821339257 | AC28: 0.00104076529 | AD28: -0.0003902869837 | AE28: 0.001242587407 | AF28: 0.0006212937034 | AG28: -0.0003106468517 | AH28: -0.0009940699254 | AI28: 0.002341721902 | AJ28: -0.002341721902 | AK28: 0.0004100538442 | AL28: -0.0007455524441
X29: 25 | Y29: 0.25 | Z29: 0 | AA29: 0.002541105583 | AB29: -0.001778773908 | AC29: 0.001016442233 | AD29: -0.0003811658374 | AE29: 0.001421310252 | AF29: 0.0007106551259 | AG29: -0.0003553275629 | AH29: -0.001137048201 | AI29: 0.002286995024 | AJ29: -0.002286995024 | AK29: 0.0004690323831 | AL29: -0.0008527861511
X30: 26 | Y30: 0.26 | Z30: 0 | AA30: 0.002465486316 | AB30: -0.001725840421 | AC30: 0.0009861945263 | AD30: -0.0003698229473 | AE30: 0.001591748548 | AF30: 0.0007958742738 | AG30: -0.0003979371369 | AH30: -0.001273398838 | AI30: 0.002218937684 | AJ30: -0.002218937684 | AK30: 0.0005252770207 | AL30: -0.0009550491286
X31: 27 | Y31: 0.27 | Z31: 0 | AA31: 0.002375496194 | AB31: -0.001662847336 | AC31: 0.0009501984778 | AD31: -0.0003563244292 | AE31: 0.001752908842 | AF31: 0.0008764544208 | AG31: -0.0004382272104 | AH31: -0.001402327073 | AI31: 0.002137946575 | AJ31: -0.002137946575 | AK31: 0.0005784599177 | AL31: -0.001051745305
X32: 28 | Y32: 0.28 | Z32: 0 | AA32: 0.002271659754 | AB32: -0.001590161828 | AC32: 0.0009086639017 | AD32: -0.0003407489631 | AE32: 0.001903851761 | AF32: 0.0009519258804 | AG32: -0.0004759629402 | AH32: -0.001523081409 | AI32: 0.002044493779 | AJ32: -0.002044493779 | AK32: 0.000628271081 | AL32: -0.001142311056
X33: 29 | Y33: 0.29 | Z33: 0 | AA33: 0.002154582238 | AB33: -0.001508207567 | AC33: 0.0008618328952 | AD33: -0.0003231873357 | AE33: 0.002043697487 | AF33: 0.001021848744 | AG33: -0.0005109243718 | AH33: -0.00163495799 | AI33: 0.001939124014 | AJ33: -0.001939124014 | AK33: 0.0006744201708 | AL33: -0.001226218492
X34: 30 | Y34: 0.3 | Z34: 0 | AA34: 0.002024946069 | AB34: -0.001417462248 | AC34: 0.0008099784275 | AD34: -0.0003037419103 | AE34: 0.002171630887 | AF34: 0.001085815444 | AG34: -0.0005429077218 | AH34: -0.00173730471 | AI34: 0.001822451462 | AJ34: -0.001822451462 | AK34: 0.0007166381927 | AL34: -0.001302978532
X35: 31 | Y35: 0.31 | Z35: 0 | AA35: 0.001883506871 | AB35: -0.00131845481 | AC35: 0.0007534027484 | AD35: -0.0002825260306 | AE35: 0.00228690626 | AF35: 0.00114345313 | AG35: -0.000571726565 | AH35: -0.001829525008 | AI35: 0.001695156184 | AJ35: -0.001695156184 | AK35: 0.0007546790659 | AL35: -0.001372143756
X36: 32 | Y36: 0.32 | Z36: 0 | AA36: =V$21*SIN(2*PI()*Y36*V$12/V$17) -> 0.001731089067 | AB36: -0.001211762347 | AC36: 0.0006924356268 | AD36: -0.0002596633601 | AE36: =V$21*AE$1*SIN(2*PI()*(1-Y36)*V$12/V$17) -> 0.002388851688 | AF36: 0.001194425844 | AG36: -0.0005972129221 | AH36: -0.001911081351 | AI36: 0.00155798016 | AJ36: -0.00155798016 | AK36: 0.0007883210572 | AL36: -0.001433311013
X37: 33 | Y37: 0.33 | Z37: 0 | AA37: 0.001568581072 | AB37: -0.00109800675 | AC37: 0.0006274324287 | AD37: -0.0002352871608 | AE37: 0.002476872951 | AF37: 0.001238436475 | AG37: -0.0006192182377 | AH37: -0.001981498361 | AI37: =$AA37*AI$1 -> 0.001411722965 | AJ37: -0.001411722965 | AK37: =$AE37*AK$1 -> 0.0008173680738 | AL37: -0.001486123771
X38: 34 | Y38: 0.34 | Z38: 0 | AA38: 0.001396930114 | AB38: -0.0009778510795 | AC38: 0.0005587720454 | AD38: -0.000209539517 | AE38: 0.002550456989 | AF38: 0.001275228494 | AG38: -0.0006376142472 | AH38: -0.002040365591 | AI38: 0.001257237102 | AJ38: -0.001257237102 | AK38: 0.0008416508062 | AL38: -0.001530274193
X39: 35 | Y39: 0.35 | Z39: 0 | AA39: 0.001217136713 | AB39: -0.0008519956993 | AC39: 0.0004868546853 | AD39: -0.000182570507 | AE39: 0.002609174894 | AF39: 0.001304587447 | AG39: -0.0006522937235 | AH39: -0.002087339915 | AI39: 0.001095423042 | AJ39: -0.001095423042 | AK39: 0.000861027715 | AL39: -0.001565504936
X40: 36 | Y40: 0.36 | Z40: 0 | AA40: 0.001030248853 | AB40: -0.0007211741971 | AC40: 0.0004120995412 | AD40: -0.0001545373279 | AE40: 0.002652684411 | AF40: 0.001326342206 | AG40: -0.0006631711028 | AH40: -0.002122147529 | AI40: 0.0009272239677 | AJ40: -0.0009272239677 | AK40: 0.0008753858557 | AL40: -0.001591610647
X41: 37 | Y41: 0.37 | Z41: 0 | AA41: 0.0008373558664 | AB41: -0.0005861491065 | AC41: 0.0003349423466 | AD41: -0.00012560338 | AE41: 0.002680731932 | AF41: 0.001340365966 | AG41: -0.0006701829829 | AH41: -0.002144585545 | AI41: 0.0007536202798 | AJ41: -0.0007536202798 | AK41: 0.0008846415375 | AL41: -0.001608439159
X42: 38 | Y42: 0.38 | Z42: 0 | AA42: 0.0006395820906 | AB42: -0.0004477074634 | AC42: 0.0002558328363 | AD42: -9.59373136e-05 | AE42: 0.002693153972 | AF42: 0.001346576986 | AG42: -0.0006732884929 | AH42: -0.002154523177 | AI42: 0.0005756238816 | AJ42: -0.0005756238816 | AK42: 0.0008887408107 | AL42: -0.001615892383
X43: 39 | Y43: 0.39 | Z43: 0 | AA43: 0.0004380803115 | AB43: -0.0003066562181 | AC43: 0.0001752321246 | AD43: -6.571204673e-05 | AE43: 0.002689878126 | AF43: 0.001344939063 | AG43: -0.0006724695314 | AH43: -0.002151902501 | AI43: 0.0003942722804 | AJ43: -0.0003942722804 | AK43: 0.0008876597815 | AL43: -0.001613926875
X44: 40 | Y44: 0.4 | Z44: 0 | AA44: 0.000234025045 | AB44: =$AA44*AB$1 -> -0.0001638175315 | AC44: 9.3610018e-05 | AD44: -3.510375675e-05 | AE44: 0.002670923488 | AF44: =$AE44*AF$1 -> 0.001335461744 | AG44: -0.0006677308719 | AH44: -0.00213673879 | AI44: 0.0002106225405 | AJ44: -0.0002106225405 | AK44: 0.0008814047509 | AL44: -0.001602554093
X45: 41 | Y45: 0.41 | Z45: 0 | AA45: 2.860569065e-05 | AB45: -2.002398345e-05 | AC45: 1.144227626e-05 | AD45: -4.290853597e-06 | AE45: 0.002636400541 | AF45: 0.00131820027 | AG45: -0.0006591001352 | AH45: -0.002109120433 | AI45: 2.574512158e-05 | AJ45: -2.574512158e-05 | AK45: 0.0008700121785 | AL45: -0.001581840325
X46: 42 | Y46: 0.42 | Z46: 0 | AA46: -0.0001769804009 | AB46: 0.0001238862806 | AC46: -7.079216035e-05 | AD46: 2.654706013e-05 | AE46: 0.002586510513 | AF46: 0.001293255256 | AG46: -0.0006466276282 | AH46: -0.00206920841 | AI46: -0.0001592823608 | AJ46: 0.0001592823608 | AK46: 0.0008535484692 | AL46: -0.001551906308
X47: 43 | Y47: 0.43 | Z47: 0 | AA47: -0.0003815349071 | AB47: 0.0002670744349 | AC47: -0.0001526139628 | AD47: 5.723023606e-05 | AE47: 0.002521544203 | AF47: 0.001260772102 | AG47: -0.0006303860508 | AH47: -0.002017235363 | AI47: -0.0003433814164 | AJ47: 0.0003433814164 | AK47: 0.0008321095871 | AL47: -0.001512926522
X48: 44 | Y48: 0.44 | Z48: 0 | AA48: -0.0005838655183 | AB48: 0.0004087058628 | AC48: -0.0002335462073 | AD48: 8.757982774e-05 | AE48: 0.002441880288 | AF48: 0.001220940144 | AG48: -0.0006104700721 | AH48: -0.001953504231 | AI48: -0.0005254789664 | AJ48: 0.0005254789664 | AK48: 0.0008058204952 | AL48: -0.001465128173
X49: 45 | Y49: 0.45 | Z49: 0 | AA49: -0.0007827928876 | AB49: 0.0005479550213 | AC49: -0.000313117155 | AD49: 0.0001174189331 | AE49: 0.002347983114 | AF49: 0.001173991557 | AG49: -0.0005869957786 | AH49: -0.001878386491 | AI49: -0.0007045135988 | AJ49: 0.0007045135988 | AK49: 0.0007748344277 | AL49: -0.001408789869
X50: 46 | Y50: 0.46 | Z50: 0 | AA50: -0.0009771575049 | AB50: 0.0006840102534 | AC50: -0.000390863002 | AD50: 0.0001465736257 | AE50: 0.00224039999 | AF50: 0.001120199995 | AG50: -0.0005600999974 | AH50: -0.001792319992 | AI50: -0.0008794417544 | AJ50: 0.0008794417544 | AK50: 0.0007393319966 | AL50: -0.001344239994
X51: 47 | Y51: 0.47 | Z51: 0 | AA51: -0.001165826456 | AB51: 0.0008160785189 | AC51: -0.0004663305822 | AD51: 0.0001748739683 | AE51: 0.002119757997 | AF51: 0.001059878998 | AG51: -0.0005299394991 | AH51: -0.001695806397 | AI51: -0.00104924381 | AJ51: 0.00104924381 | AK51: 0.0006995201389 | AL51: -0.001271854798
X52: 48 | Y52: 0.48 | Z52: 0 | AA52: -0.001347700024 | AB52: 0.0009433900167 | AC52: -0.0005390800095 | AD52: 0.0002021550036 | AE52: 0.001986760334 | AF52: 0.000993380167 | AG52: -0.0004966900835 | AH52: -0.001589408267 | AI52: -0.001212930021 | AJ52: 0.001212930021 | AK52: 0.0006556309103 | AL52: -0.0011920562
X53: 49 | Y53: 0.49 | Z53: 0 | AA53: -0.001521718103 | AB53: 0.001065202672 | AC53: -0.0006086872412 | AD53: 0.0002282577155 | AE53: 0.001842182221 | AF53: 0.0009210911103 | AG53: -0.0004605455552 | AH53: -0.001473745777 | AI53: -0.001369546293 | AJ53: 0.001369546293 | AK53: 0.0006079201328 | AL53: -0.001105309332
X54: 50 | Y54: 0.5 | Z54: 0 | AA54: -0.001686866375 | AB54: 0.001180806462 | AC54: -0.0006747465499 | AD54: 0.0002530299562 | AE54: 0.001686866375 | AF54: 0.0008434331874 | AG54: -0.0004217165937 | AH54: -0.0013494931 | AI54: -0.001518179737 | AJ54: 0.001518179737 | AK54: 0.0005566659037 | AL54: -0.001012119825
X55: 51 | Y55: 0.51 | Z55: 0 | AA55: -0.001842182221 | AB55: 0.001289527554 | AC55: -0.0007368728883 | AD55: 0.0002763273331 | AE55: 0.001521718103 | AF55: 0.0007608590515 | AG55: -0.0003804295258 | AH55: -0.001217374482 | AI55: -0.001657963999 | AJ55: 0.001657963999 | AK55: 0.000502166974 | AL55: -0.0009130308619
X56: 52 | Y56: 0.52 | Z56: 0 | AA56: -0.001986760334 | AB56: 0.001390732234 | AC56: -0.0007947041336 | AD56: 0.0002980140501 | AE56: 0.001347700024 | AF56: 0.0006738500119 | AG56: -0.000336925006 | AH56: -0.001078160019 | AI56: -0.001788084301 | AJ56: 0.001788084301 | AK56: 0.0004447410079 | AL56: -0.0008086200143
X57: 53 | Y57: 0.53 | Z57: 0 | AA57: -0.002119757997 | AB57: 0.001483830598 | AC57: -0.0008479031986 | AD57: 0.0003179636995 | AE57: 0.001165826456 | AF57: 0.0005829132278 | AG57: -0.0002914566139 | AH57: -0.0009326611645 | AI57: -0.001907782197 | AJ57: 0.001907782197 | AK57: 0.0003847227303 | AL57: -0.0006994958733
X58: 54 | Y58: 0.54 | Z58: 0 | AA58: -0.00224039999 | AB58: 0.001568279993 | AC58: -0.0008961599959 | AD58: 0.0003360599985 | AE58: 0.0009771575049 | AF58: 0.0004885787525 | AG58: -0.0002442893762 | AH58: -0.0007817260039 | AI58: -0.002016359991 | AJ58: 0.002016359991 | AK58: 0.0003224619766 | AL58: -0.0005862945029
X59: 55 | Y59: 0.55 | Z59: 0 | AA59: -0.002347983114 | AB59: 0.00164358818 | AC59: -0.0009391932457 | AD59: 0.0003521974671 | AE59: 0.0007827928876 | AF59: 0.0003913964438 | AG59: -0.0001956982219 | AH59: -0.0006262343101 | AI59: -0.002113184803 | AJ59: 0.002113184803 | AK59: 0.0002583216529 | AL59: -0.0004696757326
X60: 56 | Y60: 0.56 | Z60: 0 | AA60: -0.002441880288 | AB60: 0.001709316202 | AC60: -0.0009767521154 | AD60: 0.0003662820433 | AE60: 0.0005838655183 | AF60: 0.0002919327591 | AG60: -0.0001459663796 | AH60: -0.0004670924146 | AI60: -0.00219769226 | AJ60: 0.00219769226 | AK60: 0.000192675621 | AL60: -0.000350319311
X61: 57 | Y61: 0.57 | Z61: 0 | AA61: -0.002521544203 | AB61: 0.001765080942 | AC61: -0.001008617681 | AD61: 0.0003782316305 | AE61: 0.0003815349071 | AF61: 0.0001907674535 | AG61: -9.538372676e-05 | AH61: -0.0003052279256 | AI61: -0.002269389783 | AJ61: 0.002269389783 | AK61: 0.0001259065193 | AL61: -0.0002289209442
X62: 58 | Y62: 0.58 | Z62: 0 | AA62: -0.002586510513 | AB62: 0.001810557359 | AC62: -0.001034604205 | AD62: 0.0003879765769 | AE62: 0.0001769804009 | AF62: 8.849020044e-05 | AG62: -4.424510022e-05 | AH62: -0.0001415843207 | AI62: -0.002327859462 | AJ62: 0.002327859462 | AK62: 5.840353229e-05 | AL62: -0.0001061882405
X63: 59 | Y63: 0.59 | Z63: 0 | AA63: -0.002636400541 | AB63: 0.001845480379 | AC63: -0.001054560216 | AD63: 0.0003954600811 | AE63: -2.860569065e-05 | AF63: -1.430284532e-05 | AG63: 7.151422662e-06 | AH63: 2.288455252e-05 | AI63: -0.002372760487 | AJ63: 0.002372760487 | AK63: -9.439877914e-06 | AL63: 1.716341439e-05
X64: 60 | Y64: 0.6 | Z64: 0 | AA64: -0.002670923488 | AB64: =$AA64*AB$1 -> 0.001869646441 | AC64: -0.001068369395 | AD64: 0.0004006385232 | AE64: -0.000234025045 | AF64: =$AE64*AF$1 -> -0.0001170125225 | AG64: 5.850626125e-05 | AH64: 0.000187220036 | AI64: -0.002403831139 | AJ64: 0.002403831139 | AK64: -7.722826485e-05 | AL64: 0.000140415027
X65: 61 | Y65: 0.61 | Z65: 0 | AA65: -0.002689878126 | AB65: 0.001882914688 | AC65: -0.00107595125 | AD65: 0.0004034817189 | AE65: -0.0004380803115 | AF65: -0.0002190401558 | AG65: 0.0001095200779 | AH65: 0.0003504642492 | AI65: -0.002420890313 | AJ65: 0.002420890313 | AK65: -0.0001445665028 | AL65: 0.0002628481869
X66: 62 | Y66: 0.62 | Z66: 0 | AA66: -0.002693153972 | AB66: 0.00188520778 | AC66: -0.001077261589 | AD66: 0.0004039730958 | AE66: -0.0006395820906 | AF66: -0.0003197910453 | AG66: 0.0001598955227 | AH66: 0.0005116656725 | AI66: -0.002423838575 | AJ66: 0.002423838575 | AK66: -0.0002110620899 | AL66: 0.0003837492544
X67: 63 | Y67: 0.63 | Z67: 0 | AA67: -0.002680731932 | AB67: 0.001876512352 | AC67: -0.001072292773 | AD67: 0.0004021097898 | AE67: -0.0008373558664 | AF67: -0.0004186779332 | AG67: 0.0002093389666 | AH67: 0.0006698846932 | AI67: -0.002412658739 | AJ67: 0.002412658739 | AK67: -0.0002763274359 | AL67: 0.0005024135199
X68: 64 | Y68: 0.64 | Z68: 0 | AA68: =V$21*SIN(2*PI()*Y68*V$12/V$17) -> -0.002652684411 | AB68: 0.001856879088 | AC68: -0.001061073764 | AD68: 0.0003979026617 | AE68: =V$21*AE$1*SIN(2*PI()*(1-Y68)*V$12/V$17) -> -0.001030248853 | AF68: -0.0005151244265 | AG68: 0.0002575622132 | AH68: 0.0008241990824 | AI68: -0.00238741597 | AJ68: 0.00238741597 | AK68: -0.0003399821215 | AL68: 0.0006181493118
X69: 65 | Y69: =X69/100 -> 0.65 | Z69: 0 | AA69: -0.002609174894 | AB69: 0.001826422426 | AC69: -0.001043669958 | AD69: 0.0003913762341 | AE69: -0.001217136713 | AF69: -0.0006085683567 | AG69: 0.0003042841783 | AH69: 0.0009737093707 | AI69: =$AA69*AI$1 -> -0.002348257405 | AJ69: 0.002348257405 | AK69: =$AE69*AK$1 -> -0.0004016551154 | AL69: 0.000730282028
X70: 66 | Y70: 0.66 | Z70: 0 | AA70: -0.002550456989 | AB70: 0.001785319892 | AC70: -0.001020182795 | AD70: 0.0003825685483 | AE70: -0.001396930114 | AF70: -0.0006984650568 | AG70: 0.0003492325284 | AH70: 0.001117544091 | AI70: -0.00229541129 | AJ70: 0.00229541129 | AK70: -0.0004609869375 | AL70: 0.0008381580681
X71: 67 | Y71: 0.67 | Z71: 0 | AA71: -0.002476872951 | AB71: 0.001733811066 | AC71: -0.0009907491804 | AD71: 0.0003715309426 | AE71: -0.001568581072 | AF71: -0.0007842905359 | AG71: 0.000392145268 | AH71: 0.001254864857 | AI71: -0.002229185656 | AJ71: 0.002229185656 | AK71: -0.0005176317537 | AL71: 0.0009411486431
X72: 68 | Y72: 0.68 | Z72: 0 | AA72: -0.002388851688 | AB72: 0.001672196182 | AC72: -0.0009555406754 | AD72: 0.0003583277533 | AE72: -0.001731089067 | AF72: -0.0008655445335 | AG72: 0.0004327722668 | AH72: 0.001384871254 | AI72: -0.00214996652 | AJ72: 0.00214996652 | AK72: -0.0005712593921 | AL72: 0.00103865344
X73: 69 | Y73: 0.69 | Z73: 0 | AA73: -0.00228690626 | AB73: 0.001600834382 | AC73: -0.0009147625041 | AD73: 0.000343035939 | AE73: -0.001883506871 | AF73: -0.0009417534355 | AG73: 0.0004708767177 | AH73: 0.001506805497 | AI73: -0.002058215634 | AJ73: 0.002058215634 | AK73: -0.0006215572674 | AL73: 0.001130104123
X74: 70 | Y74: 0.7 | Z74: 0 | AA74: -0.002171630887 | AB74: 0.001520141621 | AC74: -0.0008686523548 | AD74: 0.0003257446331 | AE74: -0.002024946069 | AF74: -0.001012473034 | AG74: 0.0005062365172 | AH74: 0.001619956855 | AI74: -0.001954467798 | AJ74: 0.001954467798 | AK74: -0.0006682322027 | AL74: 0.001214967641
X75: 71 | Y75: 0.71 | Z75: 0 | AA75: -0.002043697487 | AB75: 0.001430588241 | AC75: -0.0008174789949 | AD75: 0.0003065546231 | AE75: -0.002154582238 | AF75: -0.001077291119 | AG75: 0.0005386455595 | AH75: 0.00172366579 | AI75: -0.001839327739 | AJ75: 0.001839327739 | AK75: -0.0007110121385 | AL75: 0.001292749343
X76: 72 | Y76: 0.72 | Z76: 0 | AA76: -0.001903851761 | AB76: 0.001332696233 | AC76: -0.0007615407043 | AD76: 0.0002855777641 | AE76: -0.002271659754 | AF76: -0.001135829877 | AG76: 0.0005679149385 | AH76: 0.001817327803 | AI76: -0.001713466585 | AJ76: 0.001713466585 | AK76: -0.0007496477189 | AL76: 0.001362995853
X77: 73 | Y77: 0.73 | Z77: 0 | AA77: -0.001752908842 | AB77: 0.001227036189 | AC77: -0.0007011635366 | AD77: 0.0002629363262 | AE77: -0.002375496194 | AF77: -0.001187748097 | AG77: 0.0005938740486 | AH77: 0.001900396956 | AI77: -0.001577617957 | AJ77: 0.001577617957 | AK77: -0.0007839137441 | AL77: 0.001425297717
X78: 74 | Y78: 0.74 | Z78: 0 | AA78: -0.001591748548 | AB78: 0.001114223983 | AC78: -0.000636699419 | AD78: 0.0002387622821 | AE78: -0.002465486316 | AF78: -0.001232743158 | AG78: 0.0006163715789 | AH78: 0.001972389053 | AI78: -0.001432573693 | AJ78: 0.001432573693 | AK78: -0.0008136104842 | AL78: 0.001479291789
X79: 75 | Y79: 0.75 | Z79: 0 | AA79: -0.001421310252 | AB79: 0.0009949171763 | AC79: -0.0005685241007 | AD79: 0.0002131965378 | AE79: -0.002541105583 | AF79: -0.001270552791 | AG79: 0.0006352763956 | AH79: 0.002032884466 | AI79: -0.001279179227 | AJ79: 0.001279179227 | AK79: -0.0008385648422 | AL79: 0.00152466335
X80: 76 | Y80: 0.76 | Z80: 0 | AA80: -0.001242587407 | AB80: 0.0008698111848 | AC80: -0.0004970349627 | AD80: 0.000186388111 | AE80: -0.002601913225 | AF80: -0.001300956612 | AG80: 0.0006504783061 | AH80: 0.00208153058 | AI80: -0.001118328666 | AJ80: 0.001118328666 | AK80: -0.0008586313641 | AL80: 0.001561147935
X81: 77 | Y81: 0.77 | Z81: 0 | AA81: -0.001056621754 | AB81: 0.000739635228 | AC81: -0.0004226487017 | AD81: 0.0001584932632 | AE81: -0.002647554806 | AF81: -0.001323777403 | AG81: 0.0006618887014 | AH81: 0.002118043844 | AI81: -0.0009509595789 | AJ81: 0.0009509595789 | AK81: -0.0008736930858 | AL81: 0.001588532883
X82: 78 | Y82: 0.78 | Z82: 0 | AA82: -0.0008644972531 | AB82: 0.0006051480772 | AC82: -0.0003457989012 | AD82: 0.000129674588 | AE82: -0.002677764289 | AF82: -0.001338882145 | AG82: 0.0006694410723 | AH82: 0.002142211431 | AI82: -0.0007780475278 | AJ82: 0.0007780475278 | AK82: -0.0008836622155 | AL82: 0.001606658574
X83: 79 | Y83: 0.79 | Z83: 0 | AA83: -0.0006673337606 | AB83: 0.0004671336324 | AC83: -0.0002669335042 | AD83: 0.0001001000641 | AE83: -0.00269236559 | AF83: -0.001346182795 | AG83: 0.0006730913976 | AH83: 0.002153892472 | AI83: -0.0006006003845 | AJ83: 0.0006006003845 | AK83: -0.0008884806448 | AL83: 0.001615419354
X84: 80 | Y84: 0.8 | Z84: 0 | AA84: -0.0004662805055 | AB84: =$AA84*AB$1 -> 0.0003263963538 | AC84: -0.0001865122022 | AD84: 6.994207582e-05 | AE84: -0.002691273601 | AF84: =$AE84*AF$1 -> -0.0013456368 | AG84: 0.0006728184002 | AH84: 0.002153018881 | AI84: -0.0004196524549 | AJ84: 0.0004196524549 | AK84: -0.0008881202882 | AL84: 0.00161476416
X85: 81 | Y85: 0.81 | Z85: 0 | AA85: -0.0002625093894 | AB85: 0.0001837565725 | AC85: -0.0001050037557 | AD85: 3.93764084e-05 | AE85: -0.002674494685 | AF85: -0.001337247343 | AG85: 0.0006686236713 | AH85: 0.002139595748 | AI85: -0.0002362584504 | AJ85: 0.0002362584504 | AK85: -0.0008825832461 | AL85: 0.001604696811
X86: 82 | Y86: 0.82 | Z86: 0 | AA86: -5.720815553e-05 | AB86: 4.004570887e-05 | AC86: -2.288326221e-05 | AD86: 8.58122333e-06 | AE86: -0.002642126645 | AF86: -0.001321063322 | AG86: 0.0006605316612 | AH86: 0.002113701316 | AI86: -5.148733998e-05 | AJ86: 5.148733998e-05 | AK86: -0.0008719017928 | AL86: 0.001585275987
X87: 83 | Y87: 0.83 | Z87: 0 | AA87: 0.0001484265338 | AB87: -0.0001038985737 | AC87: 5.937061353e-05 | AD87: -2.226398007e-05 | AE87: -0.002594358147 | AF87: -0.001297179073 | AG87: 0.0006485895367 | AH87: 0.002075486518 | AI87: 0.0001335838804 | AJ87: -0.0001335838804 | AK87: -0.0008561381885 | AL87: 0.001556614888
X88: 84 | Y88: 0.84 | Z88: 0 | AA88: 0.0003531960729 | AB88: -0.0002472372511 | AC88: 0.0001412784292 | AD88: -5.297941094e-05 | AE88: -0.002531467625 | AF88: -0.001265733813 | AG88: 0.0006328669063 | AH88: 0.0020251741 | AI88: 0.0003178764656 | AJ88: -0.0003178764656 | AK88: -0.0008353843163 | AL88: 0.001518880575
X89: 85 | Y89: 0.85 | Z89: 0 | AA89: 0.0005559068988 | AB89: -0.0003891348292 | AC89: 0.0002223627595 | AD89: -8.338603482e-05 | AE89: -0.002453821656 | AF89: -0.001226910828 | AG89: 0.0006134554141 | AH89: 0.001963057325 | AI89: 0.0005003162089 | AJ89: -0.0005003162089 | AK89: -0.0008097611466 | AL89: 0.001472292994
X90: 86 | Y90: 0.86 | Z90: 0 | AA90: 0.0007553774483 | AB90: -0.0005287642138 | AC90: 0.0003021509793 | AD90: -0.0001133066172 | AE90: -0.002361872824 | AF90: -0.001180936412 | AG90: 0.0005904682061 | AH90: 0.001889498259 | AI90: 0.0006798397035 | AJ90: -0.0006798397035 | AK90: -0.000779418032 | AL90: 0.001417123695
X91: 87 | Y91: 0.87 | Z91: 0 | AA91: 0.0009504450452 | AB91: -0.0006653115316 | AC91: 0.0003801780181 | AD91: -0.0001425667568 | AE91: -0.002256157081 | AF91: -0.001128078541 | AG91: 0.0005640392703 | AH91: 0.001804925665 | AI91: 0.0008554005407 | AJ91: -0.0008554005407 | AK91: -0.0007445318368 | AL91: 0.001353694249
X92: 88 | Y92: 0.88 | Z92: 0 | AA92: 0.001139972677 | AB92: -0.0007979808741 | AC92: 0.0004559890709 | AD92: -0.0001709959016 | AE92: -0.002137290625 | AF92: -0.001068645312 | AG92: 0.0005343226561 | AH92: 0.0017098325 | AI92: 0.00102597541 | AJ92: -0.00102597541 | AK92: -0.0007053059061 | AL92: 0.001282374375
X93: 89 | Y93: 0.89 | Z93: 0 | AA93: 0.001322855624 | AB93: -0.0009259989367 | AC93: 0.0005291422496 | AD93: -0.0001984283436 | AE93: -0.002005966304 | AF93: -0.001002983152 | AG93: 0.000501491576 | AH93: 0.001604773043 | AI93: 0.001190570061 | AJ93: -0.001190570061 | AK93: -0.0006619688804 | AL93: 0.001203579783
X94: 90 | Y94: 0.9 | Z94: 0 | AA94: 0.001498027895 | AB94: -0.001048619526 | AC94: 0.0005992111579 | AD94: -0.0002247041842 | AE94: -0.001862949585 | AF94: -0.0009314747924 | AG94: 0.0004657373962 | AH94: 0.001490359668 | AI94: 0.001348225105 | AJ94: -0.001348225105 | AK94: -0.000614773363 | AL94: 0.001117769751
X95: 91 | Y95: 0.91 | Z95: 0 | AA95: 0.001664468444 | AB95: -0.001165127911 | AC95: 0.0006657873775 | AD95: -0.0002496702665 | AE95: -0.001709074084 | AF95: -0.000854537042 | AG95: 0.000427268521 | AH95: 0.001367259267 | AI95: 0.001498021599 | AJ95: -0.001498021599 | AK95: -0.0005639944477 | AL95: 0.00102544445
X96: 92 | Y96: 0.92 | Z96: 0 | AA96: 0.00182120712 | AB96: -0.001274844984 | AC96: 0.0007284828481 | AD96: -0.000273181068 | AE96: -0.001545236713 | AF96: -0.0007726183564 | AG96: 0.0003863091782 | AH96: 0.00123618937 | AI96: 0.001639086408 | AJ96: -0.001639086408 | AK96: -0.0005099281152 | AL96: 0.0009271420277
X97: 93 | Y97: 0.93 | Z97: 0 | AA97: 0.001967330324 | AB97: -0.001377131227 | AC97: 0.0007869321297 | AD97: -0.0002950995486 | AE97: -0.001372392449 | AF97: -0.0006861962243 | AG97: 0.0003430981121 | AH97: 0.001097913959 | AI97: 0.001770597292 | AJ97: -0.001770597292 | AK97: -0.000452889508 | AL97: 0.0008234354691
X98: 94 | Y98: 0.94 | Z98: 0 | AA98: 0.002101986331 | AB98: -0.001471390432 | AC98: 0.0008407945324 | AD98: -0.0003152979497 | AE98: -0.001191548768 | AF98: -0.0005957743839 | AG98: 0.0002978871919 | AH98: 0.0009532390142 | AI98: 0.001891787698 | AJ98: -0.001891787698 | AK98: -0.0003932110934 | AL98: 0.0007149292607
X99: 95 | Y99: 0.95 | Z99: 0 | AA99: 0.002224390256 | AB99: -0.001557073179 | AC99: 0.0008897561026 | AD99: -0.0003336585385 | AE99: -0.001003759774 | AF99: -0.0005018798871 | AG99: 0.0002509399435 | AH99: 0.0008030078193 | AI99: 0.002001951231 | AJ99: -0.002001951231 | AK99: -0.0003312407255 | AL99: 0.0006022558645
X100: 96 | Y100: 0.96 | Z100: 0 | AA100: 0.002333828631 | AB100: -0.001633680042 | AC100: 0.0009335314523 | AD100: -0.0003500742946 | AE100: -0.0008101200542 | AF100: -0.0004050600271 | AG100: 0.0002025300135 | AH100: 0.0006480960433 | AI100: 0.002100445768 | AJ100: -0.002100445768 | AK100: -0.0002673396179 | AL100: 0.0004860720325
X101: 97 | Y101: 0.97 | Z101: 0 | AA101: 0.002429663558 | AB101: -0.001700764491 | AC101: 0.0009718654234 | AD101: -0.0003644495338 | AE101: -0.0006117582973 | AF101: -0.0003058791487 | AG101: 0.0001529395743 | AH101: 0.0004894066379 | AI101: 0.002186697203 | AJ101: -0.002186697203 | AK101: -0.0002018802381 | AL101: 0.0003670549784
X102: 98 | Y102: 0.98 | Z102: 0 | AA102: 0.002511336436 | AB102: -0.001757935505 | AC102: 0.001004534574 | AD102: -0.0003767004654 | AE102: -0.0004098307169 | AF102: -0.0002049153584 | AG102: 0.0001024576792 | AH102: 0.0003278645735 | AI102: 0.002260202792 | AJ102: -0.002260202792 | AK102: -0.0001352441366 | AL102: 0.0002458984301
X103: 99 | Y103: 0.99 | Z103: 0 | AA103: 0.002578371207 | AB103: -0.001804859845 | AC103: 0.001031348483 | AD103: -0.0003867556811 | AE103: -0.0002055143105 | AF103: -0.0001027571552 | AG103: 5.137857762e-05 | AH103: 0.0001644114484 | AI103: 0.002320534087 | AJ103: -0.002320534087 | AK103: -6.781972246e-05 | AL103: 0.0001233085863
X104: 100 | Y104: 1 | Z104: 0 | AA104: 0.00263037714 | AB104: -0.001841263998 | AC104: 0.001052150856 | AD104: -0.0003945565709 | AE104: 0 | AF104: 0 | AG104: 0 | AH104: 0 | AI104: 0.002367339426 | AJ104: -0.002367339426 | AK104: 0 | AL104: 0
